{"text_format":"1","workbook":"xlsx","n_sheets":3,"sheets":["PAGO","DATOS","PROVINCIAS"],"not_rendered":{"charts":0,"images":1,"macros":1,"external_links":0,"defined_names":2,"comments":0,"pivot_tables":0},"unopened":[],"bounds":{"document_bytes":16777216,"sheet_cells":100000,"rows_first":2000,"rows_last":500,"rows_between":2000,"halvings":0,"cell_chars":16384,"cell_head_chars":4096},"cells_cut":0,"cells_raw":0,"read":"whole","date_system":"1900"}

{"sheet":"PAGO","index":0,"n_rows":77,"n_cols":23,"rows_kept":77,"cut":false,"hidden":false,"merged":[[56,21,56,23],[51,21,51,23],[52,21,52,23],[28,22,28,23],[29,22,29,23],[54,12,54,23],[51,13,51,20],[50,21,50,23],[53,13,53,20],[53,21,53,23],[35,22,35,23],[36,22,36,23],[29,15,29,16],[35,19,35,20],[36,19,36,20],[40,19,40,20],[30,2,30,13],[30,15,30,16],[30,17,30,18],[30,19,30,20],[30,22,30,23],[31,2,31,13],[31,15,31,16],[31,17,31,18],[55,21,55,23],[22,22,23,23],[22,0,23,1],[22,19,23,21],[24,19,24,20],[25,19,25,20],[26,19,26,20],[22,17,23,18],[24,15,24,16],[25,15,25,16],[26,15,26,16],[34,19,34,20],[31,19,31,20],[31,22,31,23],[37,2,37,13],[37,15,37,16],[37,17,37,18],[37,19,37,20],[37,22,37,23],[38,22,38,23],[38,19,38,20],[38,17,38,18],[38,15,38,16],[38,2,38,13],[53,2,53,6],[53,7,53,10],[40,22,40,23],[32,19,32,20],[33,19,33,20],[32,22,32,23],[33,22,33,23],[34,22,34,23],[36,15,36,16],[34,15,34,16],[35,15,35,16],[32,15,32,16],[39,2,39,13],[39,15,39,16],[39,17,39,18],[39,19,39,20],[39,22,39,23],[43,6,43,9],[45,1,47,23],[40,17,40,18],[8,5,8,6],[11,1,11,8],[11,10,11,17],[11,19,11,23],[8,13,8,19],[24,17,24,18],[25,17,25,18],[26,17,26,18],[27,17,27,18],[24,22,24,23],[25,22,25,23],[26,22,26,23],[27,22,27,23],[27,15,27,16],[27,19,27,20],[22,2,23,13],[18,1,18,6],[16,15,16,18],[16,19,16,23],[18,7,18,8],[18,10,18,23],[24,2,24,13],[25,2,25,13],[26,2,26,13],[60,6,60,23],[62,15,62,24],[75,18,75,23],[62,1,62,4],[62,5,62,8],[62,9,62,12],[62,13,62,14],[14,1,14,5],[14,7,14,12],[14,14,14,23],[28,17,28,18],[33,15,33,16],[36,2,36,13],[40,2,40,13],[42,17,42,20],[28,19,28,20],[29,19,29,20],[40,15,40,16],[29,17,29,18],[32,17,32,18],[33,17,33,18],[34,17,34,18],[35,17,35,18],[36,17,36,18],[27,2,27,13],[22,14,23,14],[22,15,23,16],[34,2,34,13],[35,2,35,13],[28,2,28,13],[29,2,29,13],[32,2,32,13],[33,2,33,13],[28,15,28,16]]}
[]
[]
[]
[]
[]
[null,"DATOS ALUMNO/A"]
[]
[null,"Documento"]
[null,"de identidad:",null,null,null,null,null,null,null,null,"Número:"]
[]
[null,"Apellido1:",null,null,null,null,null,null,null,null,"Apellido 2:",null,null,null,null,null,null,null,null,"Nombre:"]
[]
[]
[null,"Télefono fijo:",null,null,null,null,null,"Télefono móvil:",null,null,null,null,null,null,"e-mail"]
[]
[]
[null,"CURSO EN EL QUE SE MATRICULA",null,null,null,null,null,null,null,null,null,null,null,null,null,"AÑO ACADÉMICO"]
[null,"NIVEL",null,null,null,null,null,null,null,null,"TÍTULO:"]
[null,"C.F. GRADO MEDIO",null,null,null,null,null,null,null,null,"Farmacia y Parafarmacia"]
[]
[null,"MODULOS EN LOS QUE SE MATRICULA:"]
[]
["Curso",null,"Módulo",null,null,null,null,null,null,null,null,null,null,null,"Horas","Matricular",null,"Precio",null,"Convalidar",null,null,"Precio Conval."]
[]
[null,"1º","0099 Disposición y venta de productos",null,null,null,null,null,null,null,null,null,null,null,102,null,null,{"$f":"O25*2.4","v":244.79999999999998},null,null,null,null,10]
[null,"1º","0100 Oficina de farmacia",null,null,null,null,null,null,null,null,null,null,null,136,null,null,{"$f":"O26*2.4","v":326.39999999999998},null,null,null,null,10]
[null,"1º","0102 Dispensación de productos parafarmacéut.",null,null,null,null,null,null,null,null,null,null,null,238,null,null,571.19999999999993,null,null,null,null,10]
[null,"1º","0103 Operaciones básicas de laboratorio",null,null,null,null,null,null,null,null,null,null,null,170,null,null,408,null,null,null,null,10]
[null,"1º","1709 Itinerario personal para la empleabilidad I",null,null,null,null,null,null,null,null,null,null,null,102,null,null,244.79999999999998,null,null,null,null,10]
[null,"1º","0061 Anatomofisiología y patología básicas",null,null,null,null,null,null,null,null,null,null,null,136,null,null,326.39999999999998,null,null,null,null,10]
[null,"1º","0156 Ingés profesional",null,null,null,null,null,null,null,null,null,null,null,68,null,null,{"$f":"O31*2.4","v":163.19999999999999},null,null,null,null,10]
[null,"1º","Módulo optativo I",null,null,null,null,null,null,null,null,null,null,null,34,null,null,{"$f":"O32*2.4","v":81.599999999999994},null,null,null,null,10]
[null,"2º","0101 Dispensación de productos farmacéuticos",null,null,null,null,null,null,null,null,null,null,null,297,null,null,{"$f":"O33*2.4","v":712.8},null,null,null,null,10]
[null,"2º","0104 Formulación magistral",null,null,null,null,null,null,null,null,null,null,null,198,null,null,475.2,null,null,null,null,10]
[null,"2º","0105 Promoción de la salud",null,null,null,null,null,null,null,null,null,null,null,198,null,null,475.2,null,null,null,null,10]
[null,"2º","1710 Itinerario personal para la empleabilidad II",null,null,null,null,null,null,null,null,null,null,null,68,null,null,163.19999999999999,null,null,null,null,10]
[null,"2º","0020 Primeros auxilios",null,null,null,null,null,null,null,null,null,null,null,66,null,null,158.4,null,null,null,null,10]
[null,"2º","1664 Digitalización aplicada a los sectores prod.",null,null,null,null,null,null,null,null,null,null,null,34,null,null,{"$f":"O38*2.4","v":81.599999999999994},null,null,null,null,10]
[null,"2º","1713 Proyecto intermodular",null,null,null,null,null,null,null,null,null,null,null,65,null,null,{"$f":"O39*2.4","v":156},null,null,null,null,10]
[null,"2º","1708 Sostenibilidad aplicada al sistema product.",null,null,null,null,null,null,null,null,null,null,null,34,null,null,{"$f":"O40*2.4","v":81.599999999999994},null,null,null,null,10]
[null,"2º","Módulo optativo II",null,null,null,null,null,null,null,null,null,null,null,54,null,null,{"$f":"O41*2.4","v":129.6},null,null,null,null,10]
[]
[null,null,null,null,null,null,"TOTAL horas  e importe",null,null,null,null,null,null,null,{"$f":"SUMIF(P25:Q41,\"si\",O25:O41)","v":0},"h.",null,{"$f":"SUMIF(P25:Q41,\"si\",R25:S41)-SUMIF(T25:U41,\"si\",R25:S41)+SUMIF(T25:U41,\"si\",W25:X41)","v":0}]
[]
[null,"FORMA DE PAGO:"]
[null,"El pago inicial se podrá realizar mediante transferencia bancaria o ingreso en efectivo a través de los cajeros automáticos disponibles en la oficinas del Banco Santander, a favor del siguiente número de cuenta:ES05 0049 3319 5928 1405 0252"]
[]
[]
[null,"OBLIGATORIAMENTE DEBERÁ INDICARSE EN EL CONCEPTO EL NOMBRE  DEL ALUMNO/A SEGUIDO DE FP-ONLINE"]
[]
[null,null,null,null,null,null,null,null,null,null,null,null,null,null,null,null,null,null,null,null,null,{"$f":"IF(AND(DATOS!A35=TRUE,AND($O$43<>986,O43<>1014)),DATOS!B35-H54,\"\")","v":""}]
[null,null,null,null,null,null,null,null,null,null,null,null,null,"8% DTO. PARA MATRICULA CURSO COMPLETO",null,null,null,null,null,null,null,{"$f":"IF(DATOS!A35=TRUE,IF(OR($O$43=986,O43=1014),DATOS!B35-(DATOS!B35*8%)-H54,\"\"),\"\")","v":""}]
[null,null,null,null,null,null,null,null,null,null,null,null,null,null,null,null,null,null,null,null,null,{"$f":"IF(AND(DATOS!A36=TRUE,AND($O$43<>986,O43<>1014)),DATOS!B36,\"\")","v":""}]
[null,null,"Total a pagar",null,null,null,null,{"$f":"SUMIF(DATOS!A31:A32,\"verdadero\",DATOS!B31:B32)","v":200},null,null,null,null,null,"4% DTO PARA MATRICULA CURSO COMPLETO",null,null,null,null,null,null,null,{"$f":"IF(DATOS!A36=TRUE,IF(OR($O$43=986,O43=1014),(R43-(R43*4%)-H54)/3,\"\"),\"\")","v":""}]
[null,null,null,null,null,null,null,null,null,null,null,null,"SOLO PARA IMPORTES SUPERIORES A 1.000€"]
[null,null,null,null,null,null,null,null,null,null,null,null,null,null,null,null,null,null,null,null,null,{"$f":"IF(AND(DATOS!A37=TRUE,AND($O$43<>986,O43<>1014),R43>=1000),DATOS!B37,\"\")","v":""}]
[null,null,null,null,null,null,null,null,null,null,null,null,null," 3% dto para matricula curso completo",null,null,null,null,null,null,null,{"$f":"IF(DATOS!A37=TRUE,IF(OR($O$43=986,O43=1014),(R43-(R43*3%)-PAGO!H54)/9,\"\"),\"\")","v":""}]
[]
[null,"DATOS PARA DOMICILIACIÓN BANCARIA"]
[]
[null,"Entidad Bancaria"]
[]
[null,"Código IBAN",null,null,null,"Entidad",null,null,null,"sucursal",null,null,null,"dc",null,"código cuenta"]
[null,"E","S",{"$f":"IF(ISBLANK($V$64),\"\",MID($C$70,1,1))","v":""},{"$f":"IF(ISBLANK($V$64),\"\",MID($C$70,2,1))","v":""},null,null,null,null,null,null,null,null,{"$f":"IF($N$67=10,LEFT($N$67,1),IF($N$67=11,0,$N$67))","v":""},{"$f":"IF($O$67=10,LEFT($O$67,1),IF($O$67=11,0,$O$67))","v":""}]
[null,null,null,null,null,null,null,null,null,null,null,null,null,{"$f":"SUM(F64*4,G64*8,H64*5,I64*10)","v":0},{"$f":"SUM(P64*1,Q64*2,R64*4,S64*8,T64*5,U64*10,V64*9,W64*7,X64*3,Y64*6)","v":0}]
[null,null,null,null,null,null,null,null,null,null,null,null,null,{"$f":"SUM(J64*9,K64*7,L64*3,M64*6)","v":0}]
[null,null,null,null,{"$f":"CONCATENATE(B64,C64,D64,E64,E68)","v":"ES"},null,null,null,null,null,null,null,null,{"$f":"IF(ISBLANK($H$64),\"\",11-MOD(SUM($N$65,$N$66),11))","v":""},{"$f":"IF(ISBLANK($U$64),\"\",11-MOD($O$65,11))","v":""}]
[null,null,null,null,{"$f":"CONCATENATE(F64,G64,H64,I64,J64,K64,L64,M64,N64,O64,P64,Q64,R64,S64,T64,U64,V64,W64,X64,Y64)","v":""}]
[]
[null,null,{"$f":"RIGHT(0&98-MOD(MOD(MOD(MOD(MID(E68,1,8),97)&MID(E68,9,8),97)&MID(E68&142800,17,8),97)&MID(E68&142800,25,2),97),2)","v":{"$error":"#VALUE!"}},null,{"$f":"MOD(MOD(MOD(MOD(MID(E68,1,8),97)&MID(E68,9,8),97)&MID(E68&142800,17,8),97)&MID(E68&142821,25,2),97)","v":{"$error":"#VALUE!"}}]
[]
[]
[]
[]
[]
[null,null,null,null,null,null,null,null,null,null,null,null,null,null,null,"Valladolid a"]
[null,null,null,null,null,null,null,null,null,null,null,null,null,null,null,null,null,"Firma del Titular"]

{"sheet":"DATOS","index":1,"n_rows":37,"n_cols":8,"rows_kept":37,"cut":false,"hidden":false,"merged":[[26,2,26,13],[15,2,15,13],[16,2,16,13],[17,2,17,13],[18,2,18,13],[19,2,19,13],[20,2,20,13],[21,2,21,13],[22,2,22,13],[23,2,23,13],[24,2,24,13],[25,2,25,13]]}
["NIVEL","AÑO","TITULO",null,null,"Celdas vinculadas"]
["C.F. GRADO MEDIO","1º","Atención a Personas en Situación de Dependencia",null,null,"Nivel",1]
["C.F. GRADO SUPERIOR","2º","Gestión Administrativa",null,null,"FPB Y GM",true,1.1200000000000001]
[null,null,"Farmacia y Parafarmacia",null,null,null,false,20]
[null,null,"Sistemas Microinformáticos y Redes",null,null,"G.S. Y BACHILLER"]
[null,null,"Administración y Finanzas",null,null," <28",true,24.12]
[null,null,"Desarrollo Aplicaciones Multiplataforma",null,null,">28",false,23]
[null,null,"Educación Infantil",null,null,"1trimestre",true,69]
["DOCUMENTO",null,"Gestión de Ventas y Espacios Comerciales",null,null,"2trimestre",true,69]
["D.N.I.",null,"Guía, Información y Asistencia Turística",null,null,"3trimestre",false,69]
["N.I.E.",null,"Integración Social"]
[null,null,"Laboratorio Clínico y Biomédico"]
[]
[]
["SI"]
["NO"]
[]
[]
["2022/2023"]
["2023/2024"]
["2024/2025"]
["2025/2026"]
["2026/2027"]
["2027/2028"]
[]
[]
[]
[]
[]
[]
[false,1.1200000000000001]
[true,{"$f":"200","v":200}]
[]
[]
[false,{"$f":"PAGO!R43","v":0}]
[false,{"$f":"(PAGO!R43-PAGO!H54)/3","v":-66.666666666666671}]
[false,{"$f":"(PAGO!R43-PAGO!H54)/9","v":-22.222222222222221}]

{"sheet":"PROVINCIAS","index":2,"n_rows":54,"n_cols":1,"rows_kept":54,"cut":false,"hidden":false,"merged":[]}
["Provincia"]
[]
["Álava (Vitoria)"]
["Albacete"]
["Alicante"]
["Almería"]
["Asturias (Oviedo)"]
["Ávila"]
["Badajoz"]
["Baleares (Palma de Mallorca)"]
["Barcelona"]
["Burgos"]
["Cáceres"]
["Cádiz"]
["Cantabria (Santander)"]
["Castellón"]
["Ceuta"]
["Ciudad Real"]
["Córdoba"]
["Coruña"]
["Cuenca"]
["Gerona"]
["Granada"]
["Guadalajara"]
["Guipúzcoa (San Sebastián)"]
["Huelva"]
["Huesca"]
["Jaén"]
["La Rioja (Logroño)"]
["Las Palmas"]
["León"]
["Lérida"]
["Lugo"]
["Madrid"]
["Málaga"]
["Melilla"]
["Murcia"]
["Navarra (Pamplona)"]
["Orense"]
["Palencia"]
["Pontevedra"]
["Salamanca"]
["Santa Cruz de Tenerife"]
["Segovia"]
["Sevilla"]
["Soria"]
["Tarragona"]
["Teruel"]
["Toledo"]
["Valencia"]
["Valladolid"]
["Vizcaya (Bilbao)"]
["Zamora"]
["Zaragoza"]